[Event "*** Titled Tuesday Blitz"]
[Site "Chess.com"]
[Date "2020.04.21"]
[Round "9"]
[White "MikaelyanArman"]
[Black "Leonid_Starozhilov"]
[Result "1/2-1/2"]
[WhiteElo "2746"]
[BlackElo "2643"]
[TimeControl "180+1"]
[EndTime "11:51:46 PDT"]
[Termination "Game drawn - insufficient material"]

1. e4 {[%clk 0:03:00.9]} 1... g6 {[%clk 0:02:55.6]} 2. d4 {[%clk 0:03:00.7]}
2... Bg7 {[%clk 0:02:55.3]} 3. Nf3 {[%clk 0:03:01.3]} 3... d6 {[%clk 0:02:55.3]}
4. Bc4 {[%clk 0:03:01.3]} 4... Nf6 {[%clk 0:02:55.3]} 5. Qe2 {[%clk 0:03:01]}
5... Nc6 {[%clk 0:02:56]} 6. h3 {[%clk 0:02:56.9]} 6... e5 {[%clk 0:02:54.8]} 7.
dxe5 {[%clk 0:02:56.2]} 7... Nxe5 {[%clk 0:02:54.7]} 8. Nxe5 {[%clk 0:02:54.6]}
8... dxe5 {[%clk 0:02:55.6]} 9. Nc3 {[%clk 0:02:44.6]} 9... c6 {[%clk
0:02:54.3]} 10. Be3 {[%clk 0:02:44.5]} 10... Qe7 {[%clk 0:02:48.8]} 11. O-O
{[%clk 0:02:41.2]} 11... O-O {[%clk 0:02:48.4]} 12. a4 {[%clk 0:02:40.1]} 12...
a5 {[%clk 0:02:34.4]} 13. Rfd1 {[%clk 0:02:29]} 13... Nh5 {[%clk 0:02:33.6]} 14.
Qf3 {[%clk 0:02:21.5]} 14... Be6 {[%clk 0:02:27.6]} 15. Bxe6 {[%clk 0:02:17.6]}
15... Qxe6 {[%clk 0:02:28.5]} 16. Bc5 {[%clk 0:02:15.2]} 16... Rfd8 {[%clk
0:02:21.3]} 17. Rxd8+ {[%clk 0:02:07.2]} 17... Rxd8 {[%clk 0:02:22.2]} 18. Bb6
{[%clk 0:02:08.1]} 18... Ra8 {[%clk 0:02:15.6]} 19. Rd1 {[%clk 0:02:03.7]} 19...
Nf4 {[%clk 0:02:02.8]} 20. Ne2 {[%clk 0:02:03]} 20... c5 {[%clk 0:01:07.2]} 21.
Bxc5 {[%clk 0:01:42.7]} 21... Qc4 {[%clk 0:01:04.4]} 22. Nxf4 {[%clk 0:01:41.8]}
22... exf4 {[%clk 0:01:04.1]} 23. Ba3 {[%clk 0:01:22.9]} 23... Qxc2 {[%clk
0:00:57.3]} 24. Rd5 {[%clk 0:01:00]} 24... Bxb2 {[%clk 0:00:45.9]} 25. Bxb2
{[%clk 0:00:52.7]} 25... Qxb2 {[%clk 0:00:45.1]} 26. Kh2 {[%clk 0:00:35.2]}
26... Qb4 {[%clk 0:00:14.7]} 27. Qxf4 {[%clk 0:00:21.7]} 27... Qxa4 {[%clk
0:00:13]} 28. h4 {[%clk 0:00:22.2]} 28... Re8 {[%clk 0:00:10.7]} 29. f3 {[%clk
0:00:22.6]} 29... h5 {[%clk 0:00:09.3]} 30. Qc7 {[%clk 0:00:20.5]} 30... Qc6
{[%clk 0:00:06.7]} 31. Qxa5 {[%clk 0:00:17.6]} 31... Qf6 {[%clk 0:00:06.8]} 32.
Qe1 {[%clk 0:00:15]} 32... Re5 {[%clk 0:00:05.6]} 33. Rd7 {[%clk 0:00:07.1]}
33... Re7 {[%clk 0:00:05.8]} 34. Rd8+ {[%clk 0:00:06.1]} 34... Kg7 {[%clk
0:00:06]} 35. Rd5 {[%clk 0:00:06.5]} 35... Re5 {[%clk 0:00:06]} 36. Qg3 {[%clk
0:00:06]} 36... Re7 {[%clk 0:00:04.6]} 37. Rd6 {[%clk 0:00:05.5]} 37... Qe5
{[%clk 0:00:04.6]} 38. Qxe5+ {[%clk 0:00:05.6]} 38... Rxe5 {[%clk 0:00:05.5]}
39. Rb6 {[%clk 0:00:05.9]} 39... Re7 {[%clk 0:00:06.2]} 40. Kg3 {[%clk
0:00:06.4]} 40... Rc7 {[%clk 0:00:06.6]} 41. Kf4 {[%clk 0:00:06.9]} 41... Re7
{[%clk 0:00:06.6]} 42. g3 {[%clk 0:00:07.2]} 42... Rc7 {[%clk 0:00:06.1]} 43. g4
{[%clk 0:00:07.7]} 43... hxg4 {[%clk 0:00:06]} 44. Kxg4 {[%clk 0:00:08.6]} 44...
Re7 {[%clk 0:00:05.7]} 45. Kf4 {[%clk 0:00:08.6]} 45... Rc7 {[%clk 0:00:05.8]}
46. Ke5 {[%clk 0:00:08.8]} 46... Rc3 {[%clk 0:00:05.2]} 47. Kf4 {[%clk
0:00:06.5]} 47... Rc7 {[%clk 0:00:05.8]} 48. Kg4 {[%clk 0:00:06.4]} 48... Rd7
{[%clk 0:00:05.9]} 49. f4 {[%clk 0:00:06.1]} 49... Re7 {[%clk 0:00:06]} 50. e5
{[%clk 0:00:06.5]} 50... Rc7 {[%clk 0:00:06.2]} 51. h5 {[%clk 0:00:04.5]} 51...
gxh5+ {[%clk 0:00:06.5]} 52. Kxh5 {[%clk 0:00:05.4]} 52... Kf8 {[%clk
0:00:07.1]} 53. Kg5 {[%clk 0:00:04.9]} 53... Ke7 {[%clk 0:00:07.4]} 54. f5
{[%clk 0:00:05.4]} 54... Rd7 {[%clk 0:00:06.9]} 55. f6+ {[%clk 0:00:05.3]} 55...
Kd8 {[%clk 0:00:07.3]} 56. Kf5 {[%clk 0:00:03.9]} 56... Kc7 {[%clk 0:00:07.6]}
57. Rb2 {[%clk 0:00:04]} 57... b6 {[%clk 0:00:07.8]} 58. Rc2+ {[%clk 0:00:02.8]}
58... Kb7 {[%clk 0:00:06.9]} 59. Rg2 {[%clk 0:00:03.1]} 59... b5 {[%clk
0:00:07]} 60. Ke4 {[%clk 0:00:03.6]} 60... Kc6 {[%clk 0:00:07.2]} 61. e6 {[%clk
0:00:03.5]} 61... fxe6 {[%clk 0:00:07.2]} 62. Ke5 {[%clk 0:00:04.1]} 62... b4
{[%clk 0:00:06.6]} 63. Kxe6 {[%clk 0:00:04.5]} 63... Rd8 {[%clk 0:00:06.2]} 64.
f7 {[%clk 0:00:04]} 64... Kc5 {[%clk 0:00:05.1]} 65. Rc2+ {[%clk 0:00:04]} 65...
Kb5 {[%clk 0:00:05.6]} 66. Rd2 {[%clk 0:00:04.9]} 66... Ra8 {[%clk 0:00:04.9]}
67. Ke7 {[%clk 0:00:04.4]} 67... b3 {[%clk 0:00:04.5]} 68. Rd8 {[%clk 0:00:03]}
68... Rxd8 {[%clk 0:00:03.6]} 69. Kxd8 {[%clk 0:00:03]} 69... b2 {[%clk
0:00:04.5]} 70. f8=Q {[%clk 0:00:03.2]} 70... b1=Q {[%clk 0:00:05.2]} 71. Qd6
{[%clk 0:00:03]} 71... Qb4 {[%clk 0:00:05.4]} 72. Qd7+ {[%clk 0:00:02.3]} 72...
Kc4 {[%clk 0:00:05.8]} 73. Qc6+ {[%clk 0:00:02.3]} 73... Kb3 {[%clk 0:00:06.2]}
74. Qd7 {[%clk 0:00:02.7]} 74... Qc5 {[%clk 0:00:06.3]} 75. Qc7 {[%clk
0:00:02.5]} 75... Qf2 {[%clk 0:00:06.5]} 76. Kd7 {[%clk 0:00:02.7]} 76... Qf3
{[%clk 0:00:06.2]} 77. Kc8 {[%clk 0:00:03.6]} 77... Qc3 {[%clk 0:00:06.8]} 78.
Qxc3+ {[%clk 0:00:02.5]} 78... Kxc3 {[%clk 0:00:07.7]} 1/2-1/2

[Event "*** Titled Tuesday Blitz"]
[Site "Chess.com"]
[Date "2020.04.21"]
[Round "9"]
[White "jacky72"]
[Black "Korchmar_Vasiliy"]
[Result "0-1"]
[WhiteElo "2708"]
[BlackElo "2616"]
[TimeControl "180+1"]
[EndTime "11:54:38 PDT"]
[Termination "Korchmar_Vasiliy won by checkmate"]

1. d4 {[%clk 0:02:19.8]} 1... Nf6 {[%clk 0:02:59.4]} 2. c4 {[%clk 0:02:19.6]}
2... e6 {[%clk 0:02:59.5]} 3. Nf3 {[%clk 0:02:19.7]} 3... d5 {[%clk 0:02:59.3]}
4. Nc3 {[%clk 0:02:18.8]} 4... Bb4 {[%clk 0:02:59.3]} 5. cxd5 {[%clk 0:02:18.9]}
5... exd5 {[%clk 0:02:59.6]} 6. Bg5 {[%clk 0:02:19.2]} 6... O-O {[%clk
0:02:59.6]} 7. e3 {[%clk 0:02:19.6]} 7... Bf5 {[%clk 0:03:00.2]} 8. Qb3 {[%clk
0:02:19.4]} 8... Bxc3+ {[%clk 0:02:58.4]} 9. bxc3 {[%clk 0:02:20.3]} 9... Nbd7
{[%clk 0:02:53.7]} 10. Be2 {[%clk 0:02:19.5]} 10... c5 {[%clk 0:02:52.5]} 11.
O-O {[%clk 0:02:18.6]} 11... c4 {[%clk 0:02:45.7]} 12. Qxb7 {[%clk 0:02:17.2]}
12... Qb8 {[%clk 0:02:35.9]} 13. Qc6 {[%clk 0:02:11.4]} 13... Qb2 {[%clk
0:02:22.1]} 14. Rfe1 {[%clk 0:02:11]} 14... Qxc3 {[%clk 0:01:50.6]} 15. Ne5
{[%clk 0:01:57]} 15... Rac8 {[%clk 0:01:30]} 16. Qd6 {[%clk 0:01:51.6]} 16...
Ne4 {[%clk 0:00:54.5]} 17. Qxd5 {[%clk 0:01:50]} 17... Nb6 {[%clk 0:00:49.9]}
18. Qb5 {[%clk 0:01:37.8]} 18... Nxg5 {[%clk 0:00:50]} 19. Nc6 {[%clk
0:01:38.2]} 19... Rxc6 {[%clk 0:00:41.2]} 20. Qxc6 {[%clk 0:01:34.8]} 20... Be4
{[%clk 0:00:36.1]} 21. Qb5 {[%clk 0:01:31.3]} 21... h6 {[%clk 0:00:26.3]} 22.
Rec1 {[%clk 0:01:20.3]} 22... Qd2 {[%clk 0:00:23.6]} 23. Bxc4 {[%clk 0:01:18.7]}
23... Rc8 {[%clk 0:00:17.8]} 24. Bxf7+ {[%clk 0:01:17.2]} 24... Kxf7 {[%clk
0:00:15.4]} 25. Rxc8 {[%clk 0:01:18.1]} 25... Nxc8 {[%clk 0:00:16.1]} 26. h4
{[%clk 0:01:11.4]} 26... Ne6 {[%clk 0:00:09.6]} 27. Qe5 {[%clk 0:01:04.1]} 27...
Bb7 {[%clk 0:00:06.5]} 28. Rb1 {[%clk 0:01:00.2]} 28... Nb6 {[%clk 0:00:06.3]}
29. Qd6 {[%clk 0:00:44.3]} 29... Qc2 {[%clk 0:00:05.1]} 30. Ra1 {[%clk
0:00:32.8]} 30... Qe4 {[%clk 0:00:05.3]} 31. Qg3 {[%clk 0:00:29.2]} 31... Nc4
{[%clk 0:00:04.6]} 32. Re1 {[%clk 0:00:26.6]} 32... Qd3 {[%clk 0:00:02.6]} 33.
Qg4 {[%clk 0:00:21.1]} 33... Qe4 {[%clk 0:00:02.6]} 34. Qg3 {[%clk 0:00:20.9]}
34... Qd5 {[%clk 0:00:02.6]} 35. f3 {[%clk 0:00:19.9]} 35... Qd6 {[%clk
0:00:03.1]} 36. Qg4 {[%clk 0:00:18.8]} 36... Nb6 {[%clk 0:00:02]} 37. Kh1 {[%clk
0:00:17.8]} 37... Qe7 {[%clk 0:00:02.3]} 38. e4 {[%clk 0:00:16.9]} 38... Nxd4
{[%clk 0:00:01.9]} 39. Qf4+ {[%clk 0:00:17]} 39... Qf6 {[%clk 0:00:02.2]} 40.
Qc7+ {[%clk 0:00:17.3]} 40... Qe7 {[%clk 0:00:02.8]} 41. Qf4+ {[%clk 0:00:17.8]}
41... Kg8 {[%clk 0:00:03.4]} 42. e5 {[%clk 0:00:16.2]} 42... Ne6 {[%clk
0:00:03.3]} 43. Qg4 {[%clk 0:00:16.6]} 43... Kh7 {[%clk 0:00:02.6]} 44. Rd1
{[%clk 0:00:16.8]} 44... Qf7 {[%clk 0:00:02.5]} 45. Rd6 {[%clk 0:00:16.2]} 45...
Bc8 {[%clk 0:00:02]} 46. Qe4+ {[%clk 0:00:15.2]} 46... Qg6 {[%clk 0:00:01.8]}
47. Qc6 {[%clk 0:00:14.6]} 47... Qb1+ {[%clk 0:00:01.9]} 48. Kh2 {[%clk
0:00:14.6]} 48... Qf5 {[%clk 0:00:02.8]} 49. g3 {[%clk 0:00:13]} 49... Qxe5
{[%clk 0:00:02.7]} 50. Qc2+ {[%clk 0:00:13.4]} 50... Kh8 {[%clk 0:00:02.7]} 51.
Rc6 {[%clk 0:00:12.1]} 51... Bd7 {[%clk 0:00:02]} 52. Rc3 {[%clk 0:00:11.1]}
52... Qd5 {[%clk 0:00:02.1]} 53. Qf2 {[%clk 0:00:10.9]} 53... Qd4 {[%clk
0:00:02.1]} 54. Re3 {[%clk 0:00:11.3]} 54... Qc5 {[%clk 0:00:02]} 55. Qe2 {[%clk
0:00:11.5]} 55... Qe7 {[%clk 0:00:02.6]} 56. f4 {[%clk 0:00:11.4]} 56... Qf6
{[%clk 0:00:03.2]} 57. Qf3 {[%clk 0:00:10.1]} 57... Kh7 {[%clk 0:00:03.6]} 58.
f5 {[%clk 0:00:09.2]} 58... Nd4 {[%clk 0:00:03.2]} 59. Qe4 {[%clk 0:00:09.6]}
59... Nc4 {[%clk 0:00:03.4]} 60. Rc3 {[%clk 0:00:07.4]} 60... Bxf5 {[%clk
0:00:03.6]} 61. Qf4 {[%clk 0:00:06.2]} 61... Nd6 {[%clk 0:00:04]} 62. Rc5 {[%clk
0:00:04.4]} 62... Bg6 {[%clk 0:00:04.1]} 63. Qxf6 {[%clk 0:00:02.4]} 63... gxf6
{[%clk 0:00:05]} 64. Rd5 {[%clk 0:00:03.3]} 64... N4f5 {[%clk 0:00:03.7]} 65. h5
{[%clk 0:00:04.2]} 65... Bf7 {[%clk 0:00:03.2]} 66. Ra5 {[%clk 0:00:05.1]} 66...
Ng7 {[%clk 0:00:03.1]} 67. Rxa7 {[%clk 0:00:06]} 67... Kg8 {[%clk 0:00:03.1]}
68. g4 {[%clk 0:00:06.1]} 68... Be6 {[%clk 0:00:02.6]} 69. Kg3 {[%clk
0:00:05.7]} 69... Ne4+ {[%clk 0:00:02.1]} 70. Kf4 {[%clk 0:00:05.8]} 70... Nd6
{[%clk 0:00:03]} 71. a4 {[%clk 0:00:05.5]} 71... Bf7 {[%clk 0:00:03.4]} 72. a5
{[%clk 0:00:05.6]} 72... Ne6+ {[%clk 0:00:04.3]} 73. Kg3 {[%clk 0:00:04.4]}
73... Nc5 {[%clk 0:00:04.7]} 74. Ra8+ {[%clk 0:00:03.4]} 74... Kg7 {[%clk
0:00:05]} 75. a6 {[%clk 0:00:04.3]} 75... Nxa6 {[%clk 0:00:05]} 76. Rxa6 {[%clk
0:00:04.1]} 76... Nc4 {[%clk 0:00:05.9]} 77. Ra7 {[%clk 0:00:04]} 77... Ne5
{[%clk 0:00:06.4]} 78. Kf4 {[%clk 0:00:04.2]} 78... Nd3+ {[%clk 0:00:06.5]} 79.
Ke3 {[%clk 0:00:03.5]} 79... Ne5 {[%clk 0:00:07.4]} 80. Kf4 {[%clk 0:00:04.4]}
80... Nc6 {[%clk 0:00:07.8]} 81. Rc7 {[%clk 0:00:04]} 81... Nb4 {[%clk
0:00:08.1]} 82. Ra7 {[%clk 0:00:03.9]} 82... Nd5+ {[%clk 0:00:09]} 83. Kf3
{[%clk 0:00:04]} 83... Nc3 {[%clk 0:00:09]} 84. Ra5 {[%clk 0:00:03.7]} 84... Nd5
{[%clk 0:00:08.6]} 85. Kg3 {[%clk 0:00:03.4]} 85... Nc7 {[%clk 0:00:08.7]} 86.
Ra7 {[%clk 0:00:04.3]} 86... Ne6 {[%clk 0:00:09.1]} 87. Rd7 {[%clk 0:00:03.8]}
87... Ng5 {[%clk 0:00:10]} 88. Ra7 {[%clk 0:00:04.7]} 88... Kf8 {[%clk
0:00:10.3]} 89. Kf4 {[%clk 0:00:05.6]} 89... Kg7 {[%clk 0:00:09.6]} 90. Ra8
{[%clk 0:00:06.5]} 90... Ne6+ {[%clk 0:00:09.3]} 91. Kg3 {[%clk 0:00:06.7]}
91... Nd4 {[%clk 0:00:09.3]} 92. Ra7 {[%clk 0:00:07.6]} 92... f5 {[%clk
0:00:08.7]} 93. gxf5 {[%clk 0:00:07]} 93... Nxf5+ {[%clk 0:00:09.6]} 94. Kf4
{[%clk 0:00:07.9]} 94... Nd4 {[%clk 0:00:09.5]} 95. Ke5 {[%clk 0:00:07.9]} 95...
Nf3+ {[%clk 0:00:09.3]} 96. Kf4 {[%clk 0:00:07.7]} 96... Ng5 {[%clk 0:00:09.6]}
97. Kg4 {[%clk 0:00:08.6]} 97... Kf6 {[%clk 0:00:09.1]} 98. Ra6+ {[%clk
0:00:08.7]} 98... Be6+ {[%clk 0:00:09.5]} 99. Kf4 {[%clk 0:00:08.9]} 99... Nh3+
{[%clk 0:00:10]} 100. Kg3 {[%clk 0:00:08.8]} 100... Ng5 {[%clk 0:00:10.2]} 101.
Kf4 {[%clk 0:00:09]} 101... Nf7 {[%clk 0:00:09.7]} 102. Rb6 {[%clk 0:00:09.1]}
102... Ne5 {[%clk 0:00:08.2]} 103. Ra6 {[%clk 0:00:08.3]} 103... Nd3+ {[%clk
0:00:08.4]} 104. Ke3 {[%clk 0:00:08.6]} 104... Nc5 {[%clk 0:00:08.1]} 105. Ra5
{[%clk 0:00:08.5]} 105... Nd7 {[%clk 0:00:08]} 106. Kf4 {[%clk 0:00:08]} 106...
Nb6 {[%clk 0:00:08]} 107. Ra6 {[%clk 0:00:07.8]} 107... Nd5+ {[%clk 0:00:08.3]}
108. Kg3 {[%clk 0:00:08.7]} 108... Kf5 {[%clk 0:00:07.1]} 109. Kh4 {[%clk
0:00:08.7]} 109... Nf4 {[%clk 0:00:06.7]} 110. Ra5+ {[%clk 0:00:09.6]} 110...
Kf6 {[%clk 0:00:06.9]} 111. Ra8 {[%clk 0:00:09.3]} 111... Ng2+ {[%clk
0:00:07.1]} 112. Kg3 {[%clk 0:00:09.2]} 112... Ne3 {[%clk 0:00:08]} 113. Rh8
{[%clk 0:00:09.1]} 113... Kg5 {[%clk 0:00:07.8]} 114. Ra8 {[%clk 0:00:09.6]}
114... Nf5+ {[%clk 0:00:06.2]} 115. Kf3 {[%clk 0:00:08.9]} 115... Kxh5 {[%clk
0:00:06.7]} 116. Kf4 {[%clk 0:00:09.8]} 116... Kg6 {[%clk 0:00:05.4]} 117. Ra6
{[%clk 0:00:09.5]} 117... Kf6 {[%clk 0:00:05.6]} 118. Ra8 {[%clk 0:00:07.9]}
118... Ne7 {[%clk 0:00:05.8]} 119. Rf8+ {[%clk 0:00:06.6]} 119... Kg7 {[%clk
0:00:05.5]} 120. Ra8 {[%clk 0:00:07.5]} 120... Bf7 {[%clk 0:00:04.9]} 121. Ke5
{[%clk 0:00:08.4]} 121... Ng6+ {[%clk 0:00:04.9]} 122. Kf5 {[%clk 0:00:08.4]}
122... Ne7+ {[%clk 0:00:05.4]} 123. Ke5 {[%clk 0:00:08.1]} 123... Ng8 {[%clk
0:00:05.9]} 124. Ra7 {[%clk 0:00:08.5]} 124... Nf6 {[%clk 0:00:05.6]} 125. Kf5
{[%clk 0:00:09.4]} 125... Nh7 {[%clk 0:00:05.2]} 126. Rb7 {[%clk 0:00:09.2]}
126... Nf8 {[%clk 0:00:05.4]} 127. Ra7 {[%clk 0:00:10.1]} 127... Ne6 {[%clk
0:00:05.5]} 128. Rb7 {[%clk 0:00:09.9]} 128... Nd4+ {[%clk 0:00:05.9]} 129. Ke4
{[%clk 0:00:10]} 129... Nc6 {[%clk 0:00:05.4]} 130. Rc7 {[%clk 0:00:09.5]}
130... Nd8 {[%clk 0:00:05.7]} 131. Kf5 {[%clk 0:00:08.9]} 131... Ne6 {[%clk
0:00:06]} 132. Ra7 {[%clk 0:00:09.8]} 132... Nd4+ {[%clk 0:00:06.1]} 133. Ke4
{[%clk 0:00:09.7]} 133... Nc6 {[%clk 0:00:05.5]} 134. Rc7 {[%clk 0:00:08.8]}
134... Nd8 {[%clk 0:00:05.1]} 135. Kf5 {[%clk 0:00:08.6]} 135... h5 {[%clk
0:00:03.6]} 136. Kg5 {[%clk 0:00:06.7]} 136... Ne6+ {[%clk 0:00:03.7]} 137. Kh4
{[%clk 0:00:07.6]} 137... Nxc7 {[%clk 0:00:04.2]} 138. Kg5 {[%clk 0:00:08.5]}
138... Kh7 {[%clk 0:00:04.3]} 139. Kh4 {[%clk 0:00:08.4]} 139... Kg6 {[%clk
0:00:04.7]} 140. Kg3 {[%clk 0:00:08.4]} 140... Kg5 {[%clk 0:00:05.2]} 141. Kh3
{[%clk 0:00:07.8]} 141... Be6+ {[%clk 0:00:05.6]} 142. Kh2 {[%clk 0:00:08.7]}
142... Nd5 {[%clk 0:00:05.9]} 143. Kg2 {[%clk 0:00:09.6]} 143... h4 {[%clk
0:00:06.2]} 144. Kh2 {[%clk 0:00:08.2]} 144... Kg4 {[%clk 0:00:06.5]} 145. Kh1
{[%clk 0:00:09.1]} 145... h3 {[%clk 0:00:06.5]} 146. Kh2 {[%clk 0:00:08.9]}
146... Kh4 {[%clk 0:00:06.7]} 147. Kg1 {[%clk 0:00:09.8]} 147... Kg3 {[%clk
0:00:06.7]} 148. Kh1 {[%clk 0:00:09.1]} 148... Bf5 {[%clk 0:00:07]} 149. Kg1
{[%clk 0:00:10]} 149... h2+ {[%clk 0:00:07.4]} 150. Kh1 {[%clk 0:00:08.6]}
150... Be4# {[%clk 0:00:06.8]} 0-1